[Event "*** Titled Tuesday Blitz"]
[Site "Chess.com"]
[Date "2019.05.07"]
[Round "3"]
[White "Durarbayli"]
[Black "Elshan1985"]
[Result "0-1"]
[WhiteElo "2749"]
[BlackElo "2782"]
[TimeControl "180+2"]
[EndTime "13:40:06 PDT"]
[Termination "Elshan1985 won by resignation"]

1. e4 {[%clk 0:03:01.9]} 1... e5 {[%clk 0:02:59.4]} 2. Nf3 {[%clk 0:03:03.2]}
2... Nc6 {[%clk 0:02:59.7]} 3. Bb5 {[%clk 0:03:04.1]} 3... a6 {[%clk 0:03:00.7]}
4. Ba4 {[%clk 0:03:05]} 4... Nf6 {[%clk 0:03:01.9]} 5. d3 {[%clk 0:03:06.3]}
5... b5 {[%clk 0:03:00.9]} 6. Bb3 {[%clk 0:03:07.5]} 6... Be7 {[%clk 0:03:01.2]}
7. Nbd2 {[%clk 0:03:08.4]} 7... d6 {[%clk 0:03:01.2]} 8. a4 {[%clk 0:03:03.2]}
8... Bd7 {[%clk 0:02:59]} 9. c3 {[%clk 0:03:01.7]} 9... O-O {[%clk 0:02:55.9]}
10. Nf1 {[%clk 0:03:02.5]} 10... Na5 {[%clk 0:02:56.7]} 11. Bc2 {[%clk
0:03:03.4]} 11... c5 {[%clk 0:02:49.6]} 12. Ng3 {[%clk 0:02:49.8]} 12... b4
{[%clk 0:02:50.1]} 13. O-O {[%clk 0:02:48.5]} 13... Rb8 {[%clk 0:02:49.5]} 14.
h3 {[%clk 0:02:30.2]} 14... Qc7 {[%clk 0:02:50.3]} 15. Nh4 {[%clk 0:02:19.3]}
15... bxc3 {[%clk 0:02:38]} 16. bxc3 {[%clk 0:02:15.5]} 16... Nxe4 {[%clk
0:02:37.3]} 17. Nhf5 {[%clk 0:01:56.7]} 17... Bxf5 {[%clk 0:02:36.3]} 18. Nxf5
{[%clk 0:01:54.9]} 18... Nxc3 {[%clk 0:02:33.5]} 19. Nxe7+ {[%clk 0:01:26.7]}
19... Qxe7 {[%clk 0:02:32.4]} 20. Qe1 {[%clk 0:01:28.3]} 20... Nb3 {[%clk
0:02:27.7]} 21. Qxc3 {[%clk 0:01:29.7]} 21... Nxa1 {[%clk 0:02:28.6]} 22. Qxa1
{[%clk 0:01:31.6]} 22... Qe6 {[%clk 0:02:16.4]} 23. Re1 {[%clk 0:01:29.8]} 23...
f6 {[%clk 0:02:14.5]} 24. f4 {[%clk 0:01:09.6]} 24... Kh8 {[%clk 0:02:14.8]} 25.
Bd2 {[%clk 0:01:02.8]} 25... Qd5 {[%clk 0:02:09.5]} 26. Kh1 {[%clk 0:01:02.3]}
26... Rfc8 {[%clk 0:02:01.1]} 27. fxe5 {[%clk 0:00:52.4]} 27... dxe5 {[%clk
0:02:00.1]} 28. Bc3 {[%clk 0:00:50.8]} 28... c4 {[%clk 0:01:39.3]} 29. d4 {[%clk
0:00:47.4]} 29... exd4 {[%clk 0:01:40.4]} 30. Bxd4 {[%clk 0:00:49.3]} 30... c3
{[%clk 0:01:22]} 31. Qd1 {[%clk 0:00:46.8]} 31... Rb4 {[%clk 0:01:00.7]} 32. Qd3
{[%clk 0:00:41.5]} 32... Qh5 {[%clk 0:00:44.9]} 33. g4 {[%clk 0:00:20.8]} 33...
Qh4 {[%clk 0:00:35.3]} 34. Qxc3 {[%clk 0:00:17.2]} 34... Rbb8 {[%clk 0:00:32]}
35. Qe3 {[%clk 0:00:02.6]} 35... h5 {[%clk 0:00:18.5]} 36. Bg6 {[%clk
0:00:03.6]} 36... hxg4 {[%clk 0:00:15.8]} 37. Re2 {[%clk 0:00:02.2]} 37... Qxh3+
{[%clk 0:00:13.7]} 38. Qxh3+ {[%clk 0:00:02.9]} 38... gxh3 {[%clk 0:00:15.4]}
39. Kh2 {[%clk 0:00:04.6]} 39... Kg8 {[%clk 0:00:15.2]} 40. Kxh3 {[%clk
0:00:05]} 40... Kf8 {[%clk 0:00:15.9]} 41. a5 {[%clk 0:00:05.9]} 41... Rc4
{[%clk 0:00:16]} 42. Bb6 {[%clk 0:00:06.9]} 42... Rbc8 {[%clk 0:00:15.4]} 43.
Kg3 {[%clk 0:00:08.1]} 43... Rc3+ {[%clk 0:00:16.5]} 44. Kg4 {[%clk 0:00:09.4]}
44... R3c4+ {[%clk 0:00:17.9]} 45. Kf5 {[%clk 0:00:10.7]} 45... Rc1 {[%clk
0:00:17.7]} 46. Rd2 {[%clk 0:00:06.2]} 46... Rg1 {[%clk 0:00:17.1]} 47. Ke4
{[%clk 0:00:07.7]} 47... Rxg6 {[%clk 0:00:17.8]} 48. Kf5 {[%clk 0:00:09]} 48...
Rg5+ {[%clk 0:00:18.9]} 49. Kf4 {[%clk 0:00:10.7]} 49... Rb5 {[%clk 0:00:19.3]}
50. Rd7 {[%clk 0:00:11.8]} 50... Rb8 {[%clk 0:00:19.1]} 51. Bc7 {[%clk
0:00:09.4]} 51... Re8 {[%clk 0:00:19.7]} 52. Bd6+ {[%clk 0:00:09.2]} 52... Kg8
{[%clk 0:00:20.9]} 53. Bc7 {[%clk 0:00:10.5]} 53... Rb4+ {[%clk 0:00:21.1]} 54.
Kf5 {[%clk 0:00:12.4]} 54... Rb5+ {[%clk 0:00:20.5]} 55. Kf4 {[%clk 0:00:13.5]}
55... Ree5 {[%clk 0:00:21]} 56. Bxe5 {[%clk 0:00:14.2]} 56... Rxe5 {[%clk
0:00:22.9]} 57. Rd8+ {[%clk 0:00:12.5]} 57... Kh7 {[%clk 0:00:24.2]} 0-1

[Event "*** Titled Tuesday Blitz"]
[Site "Chess.com"]
[Date "2019.05.07"]
[Round "3"]
[White "LonesomeGeorge1"]
[Black "norwaytoadog"]
[Result "0-1"]
[WhiteElo "2370"]
[BlackElo "2250"]
[TimeControl "180+2"]
[EndTime "13:40:06 PDT"]
[Termination "norwaytoadog won by resignation"]

1. e4 {[%clk 0:03:01.9]} 1... e5 {[%clk 0:03:00.4]} 2. Nf3 {[%clk 0:02:56.3]}
2... Nc6 {[%clk 0:03:01.2]} 3. Bb5 {[%clk 0:02:56.5]} 3... a6 {[%clk 0:03:00.2]}
4. Ba4 {[%clk 0:02:57.1]} 4... Nf6 {[%clk 0:03:00.9]} 5. Qe2 {[%clk 0:02:57.8]}
5... b5 {[%clk 0:02:58.2]} 6. Bb3 {[%clk 0:02:58.3]} 6... Be7 {[%clk 0:02:59]}
7. c3 {[%clk 0:02:58.4]} 7... O-O {[%clk 0:02:59.1]} 8. O-O {[%clk 0:02:58.7]}
8... d6 {[%clk 0:02:57.1]} 9. Rd1 {[%clk 0:02:59.4]} 9... Na5 {[%clk 0:02:49.1]}
10. Bc2 {[%clk 0:02:58.4]} 10... c5 {[%clk 0:02:48.7]} 11. d4 {[%clk 0:02:59.4]}
11... Qc7 {[%clk 0:02:47.1]} 12. d5 {[%clk 0:02:59.1]} 12... Bd7 {[%clk
0:02:37.3]} 13. b3 {[%clk 0:02:59.6]} 13... Nb7 {[%clk 0:02:21.5]} 14. h3 {[%clk
0:02:49.9]} 14... a5 {[%clk 0:02:20.3]} 15. a4 {[%clk 0:02:32.1]} 15... bxa4
{[%clk 0:02:08.8]} 16. bxa4 {[%clk 0:02:34]} 16... c4 {[%clk 0:02:09.7]} 17. Na3
{[%clk 0:02:33.7]} 17... Rfc8 {[%clk 0:02:03]} 18. Rb1 {[%clk 0:02:33.6]} 18...
Nc5 {[%clk 0:02:01.1]} 19. Nb5 {[%clk 0:02:24.4]} 19... Bxb5 {[%clk 0:01:53.3]}
20. Rxb5 {[%clk 0:02:26.3]} 20... Ncd7 {[%clk 0:01:42]} 21. Ba3 {[%clk
0:02:18.2]} 21... Rab8 {[%clk 0:01:30.9]} 22. Rdb1 {[%clk 0:02:16.2]} 22... Rxb5
{[%clk 0:01:26.9]} 23. Rxb5 {[%clk 0:02:18.1]} 23... Nc5 {[%clk 0:01:11.7]} 24.
Bxc5 {[%clk 0:02:16.7]} 24... dxc5 {[%clk 0:01:10.2]} 25. Nd2 {[%clk 0:02:13.9]}
25... Ne8 {[%clk 0:00:58.1]} 26. Nxc4 {[%clk 0:02:12.2]} 26... Nd6 {[%clk
0:00:51.1]} 27. Nxd6 {[%clk 0:02:13]} 27... Bxd6 {[%clk 0:00:50.5]} 28. Bd3
{[%clk 0:01:50.4]} 28... c4 {[%clk 0:00:36]} 29. Bc2 {[%clk 0:01:41.9]} 29...
Bc5 {[%clk 0:00:32.6]} 30. g3 {[%clk 0:01:34]} 30... Qd6 {[%clk 0:00:25.3]} 31.
Kg2 {[%clk 0:01:33.4]} 31... Qf6 {[%clk 0:00:23]} 32. Qf3 {[%clk 0:01:31.9]}
32... Qe7 {[%clk 0:00:18.8]} 33. Qg4 {[%clk 0:01:25.7]} 33... Rf8 {[%clk
0:00:18]} 34. Bd1 {[%clk 0:01:21]} 34... g6 {[%clk 0:00:17.7]} 35. Be2 {[%clk
0:01:18.9]} 35... f5 {[%clk 0:00:16.4]} 36. Qh4 {[%clk 0:01:10]} 36... Qf7
{[%clk 0:00:14.2]} 37. Rxc5 {[%clk 0:00:58.8]} 37... fxe4 {[%clk 0:00:15.3]} 38.
g4 {[%clk 0:01:00.3]} 38... e3 {[%clk 0:00:15.1]} 39. fxe3 {[%clk 0:00:58.2]}
39... Qa7 {[%clk 0:00:15.3]} 40. Rb5 {[%clk 0:00:44.7]} 40... Qxe3 {[%clk
0:00:16]} 41. Rb2 {[%clk 0:00:45.9]} 41... Qe4+ {[%clk 0:00:15.6]} 42. Kh2
{[%clk 0:00:44.7]} 42... Qe3 {[%clk 0:00:16.2]} 43. Bd1 {[%clk 0:00:18.6]} 43...
Qxc3 {[%clk 0:00:15.8]} 44. Rg2 {[%clk 0:00:17.8]} 44... Qd4 {[%clk 0:00:15]}
45. Be2 {[%clk 0:00:16.1]} 45... c3 {[%clk 0:00:15.7]} 46. Qg3 {[%clk
0:00:16.9]} 46... c2 {[%clk 0:00:15.8]} 47. Qa3 {[%clk 0:00:17.5]} 47... Qf4+
{[%clk 0:00:16.1]} 48. Rg3 {[%clk 0:00:17.5]} 48... c1=Q {[%clk 0:00:17]} 49.
Qxc1 {[%clk 0:00:16.5]} 0-1

[Event "*** Titled Tuesday Blitz"]
[Site "Chess.com"]
[Date "2019.05.07"]
[Round "3"]
[White "Shahinyan_ChessMood"]
[Black "SantoBlue"]
[Result "1-0"]
[WhiteElo "2751"]
[BlackElo "2784"]
[TimeControl "180+2"]
[EndTime "13:40:07 PDT"]
[Termination "Shahinyan_ChessMood won by resignation"]

1. c4 {[%clk 0:03:01.9]} 1... Nf6 {[%clk 0:02:58.5]} 2. Nc3 {[%clk 0:03:03.1]}
2... e5 {[%clk 0:02:58]} 3. Nf3 {[%clk 0:03:02.8]} 3... Nc6 {[%clk 0:02:57]} 4.
e4 {[%clk 0:03:04.4]} 4... d6 {[%clk 0:02:54.6]} 5. d3 {[%clk 0:03:01.2]} 5...
Be7 {[%clk 0:02:53.2]} 6. h3 {[%clk 0:03:00.3]} 6... Nd7 {[%clk 0:02:54.7]} 7.
g3 {[%clk 0:03:01.3]} 7... Nc5 {[%clk 0:02:55.7]} 8. Nd5 {[%clk 0:02:58.6]} 8...
O-O {[%clk 0:02:56.9]} 9. Bg2 {[%clk 0:02:59.7]} 9... f5 {[%clk 0:02:58]} 10.
Qe2 {[%clk 0:02:47.5]} 10... a5 {[%clk 0:02:31.2]} 11. Be3 {[%clk 0:02:37.7]}
11... fxe4 {[%clk 0:02:28]} 12. dxe4 {[%clk 0:02:28.7]} 12... Nxe4 {[%clk
0:02:28.8]} 13. Nxe5 {[%clk 0:02:19.4]} 13... dxe5 {[%clk 0:01:49]} 14. Bxe4
{[%clk 0:02:17.6]} 14... Nd4 {[%clk 0:01:50.5]} 15. Bxd4 {[%clk 0:01:44.7]}
15... exd4 {[%clk 0:01:51.5]} 16. Nxe7+ {[%clk 0:01:26.4]} 16... Kh8 {[%clk
0:01:32.9]} 17. Nd5 {[%clk 0:01:17.7]} 17... Re8 {[%clk 0:01:24.1]} 18. O-O-O
{[%clk 0:01:13.4]} 18... c6 {[%clk 0:01:24.7]} 19. Nf4 {[%clk 0:01:13.6]} 19...
Bf5 {[%clk 0:01:26.2]} 20. f3 {[%clk 0:01:14.2]} 20... Bxe4 {[%clk 0:01:27.6]}
21. fxe4 {[%clk 0:01:15.2]} 21... Qg5 {[%clk 0:01:29.1]} 22. Rxd4 {[%clk
0:01:10.5]} 22... Qxg3 {[%clk 0:01:29.7]} 23. Nd3 {[%clk 0:01:05.1]} 23... Qg5+
{[%clk 0:01:29.2]} 24. Kb1 {[%clk 0:01:05.6]} 24... a4 {[%clk 0:01:29.7]} 25. e5
{[%clk 0:01:03]} 25... a3 {[%clk 0:01:30.8]} 26. b3 {[%clk 0:01:04.2]} 26... Re6
{[%clk 0:01:31.9]} 27. Rg4 {[%clk 0:01:04.9]} 27... Qe7 {[%clk 0:01:28.6]} 28.
Rhg1 {[%clk 0:01:05.5]} 28... Rg8 {[%clk 0:01:30.1]} 29. Qe1 {[%clk 0:00:47.3]}
29... Rh6 {[%clk 0:01:25.6]} 30. Nf4 {[%clk 0:00:40.8]} 30... Qf7 {[%clk
0:01:22.1]} 31. Qe4 {[%clk 0:00:40.8]} 31... Qd7 {[%clk 0:01:20.1]} 32. e6
{[%clk 0:00:34.5]} 32... Qe7 {[%clk 0:01:21.4]} 33. Qe5 {[%clk 0:00:32.8]} 33...
Rf6 {[%clk 0:01:22.7]} 34. Nh5 {[%clk 0:00:29.1]} 34... Rxe6 {[%clk 0:01:17.3]}
35. Rxg7 {[%clk 0:00:20.3]} 35... Rxg7 {[%clk 0:01:18.3]} 36. Qxg7+ {[%clk
0:00:21.4]} 36... Qxg7 {[%clk 0:01:19.8]} 37. Nxg7 {[%clk 0:00:23.3]} 37... Re5
{[%clk 0:01:21]} 38. Rg2 {[%clk 0:00:17.1]} 38... h6 {[%clk 0:01:21.4]} 39. Kc2
{[%clk 0:00:17.1]} 39... Kh7 {[%clk 0:01:22.9]} 40. Kd3 {[%clk 0:00:17.3]} 40...
c5 {[%clk 0:01:24.1]} 41. h4 {[%clk 0:00:15.5]} 41... b6 {[%clk 0:01:23]} 42.
Rg3 {[%clk 0:00:15.3]} 42... Kh8 {[%clk 0:01:21.4]} 43. Rg4 {[%clk 0:00:15.4]}
43... Kh7 {[%clk 0:01:22.7]} 44. Re4 {[%clk 0:00:09.9]} 44... Rxe4 {[%clk
0:01:05.3]} 45. Kxe4 {[%clk 0:00:11.8]} 45... Kxg7 {[%clk 0:01:07.2]} 46. Kf5
{[%clk 0:00:11.9]} 46... Kf7 {[%clk 0:00:48.9]} 47. h5 {[%clk 0:00:12.3]} 47...
Ke7 {[%clk 0:00:37.3]} 48. Kg6 {[%clk 0:00:12.5]} 48... Ke6 {[%clk 0:00:39.2]}
49. Kxh6 {[%clk 0:00:13.8]} 49... Ke5 {[%clk 0:00:41.1]} 50. Kg5 {[%clk
0:00:13.7]} 50... Kd4 {[%clk 0:00:43]} 51. h6 {[%clk 0:00:15.6]} 51... Kc3
{[%clk 0:00:44.9]} 52. h7 {[%clk 0:00:17]} 52... Kb2 {[%clk 0:00:46.5]} 53.
h8=Q+ {[%clk 0:00:18.3]} 53... Kxa2 {[%clk 0:00:48.4]} 54. Qc3 {[%clk
0:00:14.6]} 54... Kb1 {[%clk 0:00:49.1]} 55. b4 {[%clk 0:00:15]} 55... cxb4
{[%clk 0:00:43.2]} 56. Qxb4+ {[%clk 0:00:15.5]} 56... Ka2 {[%clk 0:00:43.5]} 57.
Qxb6 {[%clk 0:00:15.5]} 57... Ka1 {[%clk 0:00:44.4]} 1-0

[Event "*** Titled Tuesday Blitz"]
[Site "Chess.com"]
[Date "2019.05.07"]
[Round "3"]
[White "Oleg_Papayan"]
[Black "HansCoolNiemann"]
[Result "0-1"]
[WhiteElo "2533"]
[BlackElo "2507"]
[TimeControl "180+2"]
[EndTime "13:40:25 PDT"]
[Termination "HansCoolNiemann won by resignation"]

1. e4 {[%clk 0:03:01.9]} 1... e6 {[%clk 0:02:57.8]} 2. d4 {[%clk 0:03:02.4]}
2... d5 {[%clk 0:02:52.5]} 3. Nc3 {[%clk 0:03:02.9]} 3... Nf6 {[%clk 0:02:52.9]}
4. Bg5 {[%clk 0:02:59.7]} 4... dxe4 {[%clk 0:02:53]} 5. Nxe4 {[%clk 0:02:58.7]}
5... Be7 {[%clk 0:02:53]} 6. Bxf6 {[%clk 0:02:58.3]} 6... gxf6 {[%clk
0:02:53.3]} 7. Nf3 {[%clk 0:02:58.8]} 7... a6 {[%clk 0:02:53.4]} 8. Bd3 {[%clk
0:02:58.7]} 8... b6 {[%clk 0:02:53.8]} 9. Qe2 {[%clk 0:02:59.6]} 9... Bb7 {[%clk
0:02:55]} 10. O-O-O {[%clk 0:03:00.6]} 10... Nd7 {[%clk 0:02:55.3]} 11. Kb1
{[%clk 0:02:58.1]} 11... c6 {[%clk 0:02:53.1]} 12. c4 {[%clk 0:02:58.9]} 12...
Qc7 {[%clk 0:02:53.4]} 13. Ng3 {[%clk 0:02:49.2]} 13... b5 {[%clk 0:02:45]} 14.
Rc1 {[%clk 0:02:30.1]} 14... bxc4 {[%clk 0:02:40]} 15. Bxc4 {[%clk 0:02:30.1]}
15... Nb6 {[%clk 0:02:40.4]} 16. Bb3 {[%clk 0:02:21.5]} 16... O-O-O {[%clk
0:02:10.9]} 17. Ne4 {[%clk 0:02:07.2]} 17... Rhg8 {[%clk 0:02:07.9]} 18. g3
{[%clk 0:02:06.5]} 18... Nd7 {[%clk 0:02:02.3]} 19. Bc4 {[%clk 0:02:01.9]} 19...
Qa5 {[%clk 0:01:44.9]} 20. Rc3 {[%clk 0:01:40]} 20... f5 {[%clk 0:01:40.7]} 21.
Ned2 {[%clk 0:01:30.2]} 21... Bb4 {[%clk 0:01:33.6]} 22. Rc2 {[%clk 0:01:13.8]}
22... Kb8 {[%clk 0:01:22]} 23. Rhc1 {[%clk 0:01:12.3]} 23... c5 {[%clk
0:01:20.7]} 24. Nb3 {[%clk 0:01:11]} 24... Qb6 {[%clk 0:01:21.4]} 25. a3 {[%clk
0:01:08.1]} 25... Be4 {[%clk 0:01:13.7]} 26. axb4 {[%clk 0:00:55.8]} 26... Qxb4
{[%clk 0:01:12.9]} 27. Nfd2 {[%clk 0:00:49.5]} 27... Bxc2+ {[%clk 0:01:10.5]}
28. Rxc2 {[%clk 0:00:50.1]} 28... cxd4 {[%clk 0:01:12]} 29. Nxd4 {[%clk
0:00:50.9]} 29... Qb6 {[%clk 0:01:10.8]} 30. N2f3 {[%clk 0:00:35.6]} 30... Nc5
{[%clk 0:01:10.6]} 31. Qe3 {[%clk 0:00:29.1]} 31... Rd6 {[%clk 0:01:06.6]} 32.
Ne5 {[%clk 0:00:25.5]} 32... Rgd8 {[%clk 0:01:06.5]} 33. Ndc6+ {[%clk
0:00:17.3]} 33... Rxc6 {[%clk 0:01:07.2]} 34. Nxc6+ {[%clk 0:00:19.2]} 34...
Qxc6 {[%clk 0:01:09]} 35. Be2 {[%clk 0:00:15.2]} 35... Rc8 {[%clk 0:01:07.9]}
36. b4 {[%clk 0:00:15]} 36... Qb6 {[%clk 0:01:08.8]} 37. Ka2 {[%clk 0:00:14.5]}
37... Nd7 {[%clk 0:01:06.5]} 38. Rxc8+ {[%clk 0:00:14.7]} 38... Kxc8 {[%clk
0:01:07.2]} 39. Qxb6 {[%clk 0:00:16.4]} 39... Nxb6 {[%clk 0:01:09.1]} 40. Bxa6+
{[%clk 0:00:17.9]} 40... Kc7 {[%clk 0:01:10.5]} 41. Kb3 {[%clk 0:00:19.5]} 41...
Nd5 {[%clk 0:01:11.7]} 42. Bd3 {[%clk 0:00:19.8]} 42... Nf6 {[%clk 0:01:11.9]}
43. f3 {[%clk 0:00:20.4]} 43... Nd7 {[%clk 0:01:10]} 44. f4 {[%clk 0:00:19.9]}
44... Nf6 {[%clk 0:01:11.1]} 45. Kc4 {[%clk 0:00:20.9]} 45... Ng4 {[%clk
0:01:12.1]} 46. h3 {[%clk 0:00:21.4]} 46... Nf2 {[%clk 0:01:13.2]} 47. h4 {[%clk
0:00:21.5]} 47... Nh1 {[%clk 0:01:14.2]} 48. Kd4 {[%clk 0:00:21.9]} 48... Nxg3
{[%clk 0:01:13.5]} 49. Ke5 {[%clk 0:00:23.5]} 49... Nh5 {[%clk 0:01:14.2]} 50.
b5 {[%clk 0:00:24]} 50... Kb6 {[%clk 0:01:13]} 51. Kd6 {[%clk 0:00:24.9]} 51...
Nxf4 {[%clk 0:01:13.7]} 52. Bf1 {[%clk 0:00:25.7]} 52... Nd5 {[%clk 0:01:13.3]}
53. Ke5 {[%clk 0:00:26.6]} 53... Kc5 {[%clk 0:01:08.7]} 54. h5 {[%clk
0:00:27.4]} 54... h6 {[%clk 0:01:09.5]} 55. Bd3 {[%clk 0:00:27.8]} 55... Nc3
{[%clk 0:01:05.9]} 56. Kf6 {[%clk 0:00:27.8]} 56... Nxb5 {[%clk 0:01:06.8]} 57.
Kg7 {[%clk 0:00:28.4]} 57... e5 {[%clk 0:00:57.4]} 58. Kxh6 {[%clk 0:00:29.3]}
58... e4 {[%clk 0:00:58.4]} 59. Bf1 {[%clk 0:00:30.1]} 59... f4 {[%clk
0:00:55.4]} 60. Kg5 {[%clk 0:00:30.8]} 60... f3 {[%clk 0:00:56.4]} 61. Kf4
{[%clk 0:00:27]} 61... f5 {[%clk 0:00:41.3]} 62. h6 {[%clk 0:00:18.4]} 62... Nd6
{[%clk 0:00:41.9]} 63. h7 {[%clk 0:00:19.9]} 63... Nf7 {[%clk 0:00:43.5]} 64.
Kxf5 {[%clk 0:00:20.1]} 64... e3 {[%clk 0:00:44.4]} 65. Kf6 {[%clk 0:00:21.3]}
65... Nh8 {[%clk 0:00:45.4]} 66. Kg7 {[%clk 0:00:22.5]} 66... e2 {[%clk
0:00:46.4]} 67. Kxh8 {[%clk 0:00:24.4]} 67... exf1=Q {[%clk 0:00:47]} 68. Kg7
{[%clk 0:00:26.3]} 68... Qg2+ {[%clk 0:00:48.2]} 0-1

[Event "*** Titled Tuesday Blitz"]
[Site "Chess.com"]
[Date "2019.05.07"]
[Round "3"]
[White "murmah2003"]
[Black "penguingm1"]
[Result "0-1"]
[WhiteElo "2664"]
[BlackElo "2911"]
[TimeControl "180+2"]
[EndTime "13:40:27 PDT"]
[Termination "penguingm1 won on time"]

1. Nf3 {[%clk 0:02:53.7]} 1... d5 {[%clk 0:03:00.1]} 2. d4 {[%clk 0:02:51.2]}
2... Nf6 {[%clk 0:03:00.8]} 3. c4 {[%clk 0:02:36.2]} 3... e6 {[%clk 0:03:01.8]}
4. Nc3 {[%clk 0:02:35.9]} 4... Be7 {[%clk 0:03:02.8]} 5. Bf4 {[%clk 0:02:37.3]}
5... O-O {[%clk 0:03:03.5]} 6. e3 {[%clk 0:02:36.7]} 6... Nbd7 {[%clk
0:03:04.4]} 7. Be2 {[%clk 0:02:19.7]} 7... dxc4 {[%clk 0:03:00.4]} 8. Bxc4
{[%clk 0:02:17.9]} 8... c5 {[%clk 0:02:53.8]} 9. dxc5 {[%clk 0:02:13]} 9... Nxc5
{[%clk 0:02:54.7]} 10. O-O {[%clk 0:02:02]} 10... a6 {[%clk 0:02:52.7]} 11. a4
{[%clk 0:01:55.7]} 11... Qxd1 {[%clk 0:02:43.5]} 12. Rfxd1 {[%clk 0:01:55.9]}
12... Bd7 {[%clk 0:02:44.8]} 13. Ne5 {[%clk 0:01:49.3]} 13... Rfc8 {[%clk
0:02:32.6]} 14. a5 {[%clk 0:01:45.6]} 14... Be8 {[%clk 0:02:30.4]} 15. Be2
{[%clk 0:01:32.1]} 15... Nb3 {[%clk 0:02:12.7]} 16. Ra2 {[%clk 0:01:32.9]} 16...
Bb4 {[%clk 0:02:11.8]} 17. Bf3 {[%clk 0:00:48.3]} 17... Nxa5 {[%clk 0:02:03.7]}
18. Rxa5 {[%clk 0:00:49]} 18... Bxa5 {[%clk 0:02:03.5]} 19. Bxb7 {[%clk
0:00:50.2]} 19... Rab8 {[%clk 0:01:53.5]} 20. Bxc8 {[%clk 0:00:50.6]} 20... Rxc8
{[%clk 0:01:55.4]} 21. h3 {[%clk 0:00:40]} 21... Bb4 {[%clk 0:01:41.6]} 22. Ne2
{[%clk 0:00:33.5]} 22... h6 {[%clk 0:01:41.1]} 23. Nd4 {[%clk 0:00:33.8]} 23...
a5 {[%clk 0:01:39.2]} 24. Nd3 {[%clk 0:00:30.6]} 24... Be7 {[%clk 0:01:40]} 25.
Ra1 {[%clk 0:00:31.2]} 25... a4 {[%clk 0:01:39.5]} 26. Rc1 {[%clk 0:00:19]}
26... Ra8 {[%clk 0:01:31.8]} 27. Nc5 {[%clk 0:00:15]} 27... Nd5 {[%clk
0:01:29.1]} 28. Bg3 {[%clk 0:00:07]} 28... Nb4 {[%clk 0:01:23.8]} 29. Nb7 {[%clk
0:00:08.1]} 29... Bf6 {[%clk 0:01:09.1]} 30. Nd6 {[%clk 0:00:08.2]} 30... Nd3
{[%clk 0:00:50]} 31. Rc2 {[%clk 0:00:09.4]} 31... Bd7 {[%clk 0:00:49.3]} 32. Ne4
{[%clk 0:00:10]} 32... Bxd4 {[%clk 0:00:45.9]} 33. exd4 {[%clk 0:00:10.4]} 33...
Rc8 {[%clk 0:00:47.4]} 34. Nc5 {[%clk 0:00:05.9]} 34... Bb5 {[%clk 0:00:28.4]}
35. f3 {[%clk 0:00:07.1]} 35... Nb4 {[%clk 0:00:26.6]} 36. Rd2 {[%clk
0:00:07.9]} 36... Rd8 {[%clk 0:00:23.9]} 37. Bc7 {[%clk 0:00:08.5]} 37... Rd5
{[%clk 0:00:23.6]} 38. Ba5 {[%clk 0:00:08]} 38... Nc6 {[%clk 0:00:24.4]} 39. Bc3
{[%clk 0:00:04.8]} 39... e5 {[%clk 0:00:25.4]} 40. Ne4 {[%clk 0:00:03.6]} 40...
exd4 {[%clk 0:00:19]} 41. Rd1 {[%clk 0:00:04.7]} 41... f5 {[%clk 0:00:11.2]} 42.
Nf2 {[%clk 0:00:04]} 42... dxc3 {[%clk 0:00:08.4]} 43. Rxd5 {[%clk 0:00:05.8]}
43... cxb2 {[%clk 0:00:09.7]} 44. Rxb5 {[%clk 0:00:06.3]} 44... a3 {[%clk
0:00:11.1]} 45. Nd1 {[%clk 0:00:03.8]} 45... a2 {[%clk 0:00:12.2]} 46. Nxb2
{[%clk 0:00:04]} 46... a1=Q+ {[%clk 0:00:13.3]} 47. Kh2 {[%clk 0:00:05.7]} 47...
Nd4 {[%clk 0:00:14.6]} 48. Rb8+ {[%clk 0:00:05.2]} 48... Kh7 {[%clk 0:00:15]}
0-1